bitfinex-derivatives/quotes_SOLF0:USTF0_20250301
["timestamp","ask_amount","ask_price","bid_price","bid_amount"]
[1740820573684,6.29880781,144.12,144.1,0.05008118]
[1740820575084,0.05230781,144.12,144.1,0.05008118]
[1740820579990,6.29910781,144.12,144.1,0.05008118]
[1740820580185,0.05230781,144.12,144.1,0.05008118]
[1740820580791,6.2469,144.11,144.1,0.05008118]
[1740820582282,0.05230781,144.12,144.01,2.1281]
[1740820582596,6.2485,144.08,144.01,14.2729]
[1740820582892,2.2984,144.12,144.01,14.2729]
[1740820583393,2.2984,144.12,144.04,6.2499]
[1740820583589,0.04861667,144.08,144.05,0.04379658]
[1740820584388,6.2488,144.07,144.05,0.04379658]
[1740820584590,0.04861667,144.08,144.05,0.04379658]
[1740820585185,0.04861667,144.08,144.05,6.29309658]
[1740820586594,6.29691667,144.08,144.05,0.04379658]
[1740820590497,6.2487,144.07,144.05,0.04379658]
[1740820593003,6.2491,144.06,144.05,0.04379658]
[1740820595205,6.2491,144.06,144.05,9.658e-05]
[1740820596198,9.7291,144.06,144.05,9.658e-05]
[1740820600506,16.2923,144.06,144.05,9.658e-05]
[1740820603106,6.2491,144.06,144.05,9.658e-05]
[1740820652863,0.04861667,144.08,144.05,9.658e-05]
[1740820656470,6.2487,144.07,144.05,9.658e-05]
[1740820656674,0.04861667,144.08,144.05,9.658e-05]
[1740820657075,6.2491,144.06,144.05,9.658e-05]
[1740820659566,16.2291,144.06,144.05,9.658e-05]
[1740820668265,19.7091,144.06,144.05,9.658e-05]
[1740820674181,17.48126113,144.06,144.05,9.658e-05]
[1740820674680,16.2491,144.06,144.05,9.658e-05]
[1740820674875,6.2491,144.06,144.05,9.658e-05]
[1740820675073,16.2491,144.06,144.05,9.658e-05]
[1740820677281,6.2491,144.06,144.05,9.658e-05]
[1740820677575,16.2491,144.06,144.05,9.658e-05]
[1740820681182,19.7291,144.06,144.05,9.658e-05]
[1740820681979,231.83124897,144.06,144.05,9.658e-05]
[1740820682182,6.2547,143.93,143.92,2.2768]
[1740820688683,0.04417722,143.94,143.92,2.2768]
[1740820688882,6.29857722,143.94,143.92,2.2768]
[1740820689588,6.2547,143.93,143.92,2.2768]
[1740820690187,0.04417722,143.94,143.92,2.2768]
[1740820690391,6.29867722,143.94,143.92,2.2768]
[1740820690688,0.04417722,143.94,143.92,2.2768]
[1740820693083,6.29857722,143.94,143.92,2.2768]
[1740820693591,6.2547,143.93,143.92,2.2768]
[1740820703488,0.04417722,143.94,143.92,2.2768]
[1740820703692,6.29887722,143.94,143.92,2.2768]
[1740820703889,0.04417722,143.94,143.92,2.2768]
[1740820704098,6.2516,144.01,143.92,5.7568]
[1740820704395,6.2516,144.01,143.93,10.0]
[1740820704596,6.2516,144.01,143.97,6.2528]
[1740820704896,6.2516,144.01,143.98,4.6381]
[1740820705194,0.04986036,144.0,143.98,4.68858611]
[1740820705496,10.0,144.05,143.98,4.68858611]
[1740820705692,0.04394585,144.0,143.98,4.68858611]
[1740820705893,6.2515,144.01,143.98,4.68858611]
[1740820706595,6.2518,144.0,143.98,4.68858611]
[1740820707694,6.2514,144.01,143.98,4.68858611]
[1740820708001,0.04984376,144.03,143.98,4.68858611]
[1740820708500,0.04984376,144.03,143.98,10.94098611]
[1740820709300,6.2509,144.02,143.98,10.94098611]
[1740820710102,0.04984376,144.03,143.99,2.1528]
[1740820711205,10.0,144.07,143.99,2.1528]
[1740820711400,9.98,144.07,143.99,2.1528]
[1740820711607,6.2502,144.04,144.0,6.2514]
[1740820711803,9.98,144.07,143.99,2.1528]
[1740820712196,6.2504,144.03,144.02,0.04651862]
[1740820713400,0.04728647,144.04,144.02,0.04651862]
[1740820713607,0.04728647,144.04,144.02,6.29721862]
[1740820715109,0.04728647,144.04,144.02,0.04651862]
[1740820715605,6.29728647,144.04,144.02,0.04651862]
[1740820716511,6.2504,144.03,144.02,0.04651862]
[1740820722220,0.04728647,144.04,144.02,0.04651862]
[1740820723322,0.04728647,144.04,144.02,6.29731862]
[1740820724219,0.04728647,144.04,144.02,0.04651862]
[1740820724422,6.29738647,144.04,144.02,0.04651862]
[1740820724615,0.04728647,144.04,144.02,0.04651862]
[1740820725019,0.04728647,144.04,144.02,6.29701862]
[1740820727521,0.04728647,144.04,144.02,0.04651862]
[1740820728319,0.04728647,144.04,144.02,6.29731862]
[1740820729121,0.04728647,144.04,144.03,6.2504]
[1740820729926,0.04728647,144.04,144.02,6.29721862]
[1740820731825,0.04728647,144.04,144.02,0.04651862]
[1740820732928,6.2504,144.03,144.02,0.04651862]
[1740820734425,6.29738647,144.04,144.02,0.04651862]
[1740820735223,0.04728647,144.04,144.02,0.04651862]
[1740820737117,6.29758647,144.04,144.02,0.04651862]
[1740820739429,0.04728647,144.04,144.02,0.04651862]
[1740820739634,0.04728647,144.04,144.02,6.29701862]
[1740820740233,0.04728647,144.04,144.02,0.04651862]
[1740820740835,6.29728647,144.04,144.02,0.04651862]
[1740820742039,0.04728647,144.04,144.02,0.04651862]
[1740820742233,0.04728647,144.04,144.03,6.2504]
[1740820748136,0.04728647,144.04,144.02,0.04651862]
[1740820748530,6.29748647,144.04,144.02,0.04651862]
[1740820748836,0.04728647,144.04,144.02,0.04651862]
[1740820749240,0.04728647,144.04,144.03,6.2504]
[1740820752535,4.3372,144.13,144.08,6.2479]
[1740820752536,6.2463,144.13,144.08,6.2479]
[1740820752743,40.85459827,144.15,144.08,6.2479]
[1740820753142,6.2464,144.13,144.08,6.2479]
[1740820753647,0.04549561,144.12,144.09,0.04490703]
[1740820754846,6.29199561,144.12,144.09,0.04490703]
[1740820756955,0.04549561,144.12,144.11,6.2469]
[1740820757649,0.04549561,144.12,144.1,6.2472]
[1740820758153,0.04549561,144.12,144.09,0.04490703]
[1740820759051,0.04549561,144.12,144.09,6.29270703]
[1740820760455,6.29229561,144.12,144.09,0.04490703]
[1740820761853,0.04549561,144.12,144.09,6.29240703]
[1740820763955,0.04549561,144.12,144.1,6.2473]
[1740820765252,6.2427,144.21,144.16,6.2447]
[1740820765650,6.6417,144.24,144.13,6.2459]
[1740820765848,1.25068955,144.23,144.13,6.2459]
[1740820766051,6.6417,144.24,144.13,6.2459]
[1740820766245,0.04485587,144.19,144.17,0.04830737]
[1740820766446,9.98,144.2,144.17,0.04830737]
[1740820766648,0.04389967,144.19,144.17,0.04830737]
[1740820767056,0.04389967,144.19,144.1,4.5762]
[1740820767357,9.98,144.2,144.1,4.5762]
[1740820767857,6.245,144.16,144.11,6.2469]
[1740820768246,0.04647747,144.15,144.12,0.0459566]
[1740820768557,0.04647747,144.15,144.12,6.2924566]
[1740820768757,6.29197747,144.15,144.12,0.0459566]
[1740820770058,0.04647747,144.15,144.12,0.0459566]
[1740820771451,0.04647747,144.15,144.14,6.2456]
[1740820771958,2.1477,144.23,144.14,3.46]
[1740820772159,2.1477,144.23,144.13,9.98]
[1740820773061,0.04404954,144.19,144.17,0.04557428]
[1740820774360,0.04404954,144.19,144.17,6.28967428]
[1740820774556,0.04404954,144.19,144.17,0.04557428]
[1740820774960,0.04404954,144.19,144.17,6.28977428]
[1740820776855,6.28774954,144.19,144.17,0.04557428]
[1740820779661,0.04404954,144.19,144.17,6.28957428]
[1740820780064,0.04404954,144.19,144.17,0.04557428]
[1740820780667,6.28764954,144.19,144.17,0.04557428]
[1740820782169,0.04404954,144.19,144.17,0.04557428]
[1740820782368,0.04404954,144.19,144.17,6.28987428]
[1740820783071,6.2439,144.18,144.17,0.04557428]
[1740820784069,0.04404954,144.19,144.17,0.04557428]
[1740820785368,0.04404954,144.19,144.17,6.28957428]
[1740820785972,28.52789827,144.34,144.18,9.98]
[1740820786171,6.7177,144.33,144.18,9.98]
[1740820786371,6.2416,144.24,144.15,4.4302]
[1740820786971,6.2417,144.23,144.15,4.4302]
[1740820787273,0.05268637,144.21,144.18,0.05290585]
[1740820787674,0.05268637,144.21,144.2,6.243]
[1740820787875,12.3037,144.31,144.19,10.1]
[1740820788267,6.2401,144.27,144.19,10.1]
[1740820788576,12.3037,144.31,144.19,10.1]
[1740820788967,6.2412,144.25,144.24,0.05065285]
[1740820789167,12.3037,144.31,144.24,0.05065285]
[1740820789376,0.0477123,144.26,144.24,0.05065285]
[1740820789573,6.2404,144.27,144.24,0.05065285]
[1740820789774,0.04933368,144.26,144.24,0.05065285]
[1740820789969,12.3037,144.31,144.24,0.05065285]
[1740820790170,0.0442585,144.26,144.24,0.05065285]
[1740820790370,12.3037,144.31,144.24,0.05065285]
[1740820790568,6.2409,144.25,144.24,0.05065285]
[1740820792077,6.2424,144.22,144.17,6.2442]
[1740820792471,6.2424,144.22,144.16,125.40045545]
[1740820792672,10.1,144.26,144.16,125.40045545]
[1740820792873,6.2419,144.23,144.16,125.40045545]
[1740820793169,0.05330589,144.22,144.2,0.04879397]
[1740820793878,6.29550589,144.22,144.2,0.04879397]
[1740820795076,0.05330589,144.22,144.2,0.04879397]
[1740820797082,0.05330589,144.22,144.21,6.2426]
[1740820797680,6.2408,144.26,144.2,0.04879397]
[1740820797878,6.2401,144.27,144.23,6.2416]
[1740820798880,0.04870557,144.26,144.24,0.05160951]
[1740820799274,0.04870557,144.26,144.24,6.29290951]
[1740820800482,6.28920557,144.26,144.24,0.05160951]
[1740820800680,0.04870557,144.26,144.24,0.05160951]
[1740820801985,0.04870557,144.26,144.2,6.2429]
[1740820802180,4.4231,144.26,144.2,6.2429]
[1740820802381,4.4231,144.26,144.17,2.2968]
[1740820802579,6.2425,144.22,144.18,6.2436]
[1740820803383,0.04578686,144.21,144.19,0.0516559]
[1740820803781,6.28858686,144.21,144.19,0.0516559]
[1740820804484,0.04578686,144.21,144.19,0.0516559]
[1740820811392,0.04578686,144.21,144.19,6.2950559]
[1740820813001,0.04578686,144.21,144.19,0.0516559]
[1740820813503,0.04578686,144.21,144.2,6.243]
[1740820813797,0.04578686,144.21,144.19,0.0516559]
[1740820814191,0.04578686,144.21,144.19,6.2948559]
[1740820816098,221.88,144.31,144.19,0.0516559]
[1740820816099,10.08,144.31,144.19,0.0516559]
[1740820816297,6.7853,144.3,144.17,2.2968]
[1740820817201,0.04622492,144.25,144.22,0.0524428]
[1740820817605,6.28732492,144.25,144.22,0.0524428]
[1740820820610,6.2417,144.24,144.22,0.0524428]
[1740820823406,0.04622492,144.25,144.22,0.0524428]
[1740820823708,6.2417,144.23,144.22,0.0524428]
[1740820824306,6.83252492,144.25,144.22,0.0524428]
[1740820825103,6.2415,144.24,144.22,0.0524428]
[1740820825308,0.04622492,144.25,144.22,0.0524428]
[1740820826205,6.2416,144.24,144.22,0.0524428]
[1740820826909,6.2417,144.23,144.22,0.0524428]
[1740820847418,6.2438,144.19,144.15,6.245]
[1740820847619,6.2438,144.19,144.14,11.92820815]
[1740820848009,6.244,144.18,144.14,18.17360815]
[1740820848617,0.04528098,144.17,144.15,0.04966195]
[1740820848922,6.2448,144.16,144.15,0.04966195]
[1740820849423,0.04528098,144.17,144.14,9.65250815]
[1740820849424,6.2452,144.15,144.14,9.65250815]
[1740820849624,16.2652,144.15,144.14,9.65250815]
[1740820851123,6.2456,144.14,144.13,0.05291878]
[1740820853727,6.2456,144.14,144.13,1.878e-05]
[1740820854628,8.4481,144.14,144.13,1.878e-05]
[1740820854829,11.9081,144.14,144.13,1.878e-05]
[1740820855628,8.4481,144.14,144.13,1.878e-05]
[1740820864730,6.2456,144.14,144.13,1.878e-05]
[1740820866129,6.2453,144.15,144.13,1.878e-05]
[1740820866330,10.02528098,144.17,144.13,1.878e-05]
[1740820866933,6.2456,144.15,144.13,1.878e-05]
[1740820867130,10.02528098,144.17,144.13,1.878e-05]
[1740820867630,6.2456,144.14,144.13,1.878e-05]
[1740820868637,6.2451,144.16,144.13,1.878e-05]
[1740820870036,6.28978098,144.17,144.13,1.878e-05]
[1740820870637,6.2448,144.16,144.13,1.878e-05]
[1740820871835,6.28968098,144.17,144.14,6.2455]
[1740820872436,6.28968098,144.17,144.13,1.878e-05]
[1740820872837,6.2448,144.16,144.13,1.878e-05]
[1740820873043,0.04528098,144.17,144.13,1.878e-05]
[1740820873642,0.04528098,144.17,144.13,6.24581878]
[1740820873841,0.04528098,144.17,144.13,1.878e-05]
[1740820874249,0.04528098,144.17,144.14,6.2453]
[1740820875555,0.04528098,144.17,144.13,6.24591878]
[1740820875856,0.04528098,144.17,144.13,1.878e-05]
[1740820876054,0.04528098,144.17,144.14,6.2455]
[1740820876954,6.28968098,144.17,144.14,6.2455]
[1740820878050,0.04528098,144.17,144.14,6.2455]
[1740820878257,0.04528098,144.17,144.13,1.878e-05]
[1740820878554,0.04528098,144.17,144.15,6.2451]
[1740820884061,0.04528098,144.17,144.16,6.2448]
[1740820884957,0.04528098,144.17,144.15,6.2449]
[1740820888860,0.04528098,144.17,144.14,4.3568]
[1740820889062,6.2448,144.16,144.14,4.3568]
[1740820890060,0.04528098,144.17,144.14,4.3568]
[1740820890263,6.2452,144.15,144.14,4.3568]
[1740820891459,0.04528098,144.17,144.14,4.3568]
[1740820891460,6.2449,144.16,144.14,4.3568]
[1740820892567,0.04528098,144.17,144.14,4.3568]
[1740820892766,6.2452,144.15,144.14,4.3568]
[1740820893760,6.2449,144.16,144.14,4.3568]
[1740820895459,6.2452,144.15,144.13,1.878e-05]
[1740820896669,0.04528098,144.17,144.13,6.24581878]
[1740820896863,28.01869827,144.29,144.13,12.09391878]
[1740820897169,9.98,144.28,144.13,12.0939]
[1740820897768,9.98,144.28,144.18,6.2435]
[1740820897769,6.242,144.23,144.18,6.2435]
[1740820897968,0.05084868,144.22,144.19,0.05309219]
[1740820898171,9.98,144.28,144.18,6.2435]
[1740820898472,0.04802266,144.22,144.19,0.04992351]
[1740820898667,0.04802266,144.22,144.14,2.2554]
[1740820898864,0.0508589,144.21,144.19,0.04869787]
[1740820900372,6.243,144.2,144.19,0.04869787]
[1740820909069,0.0508589,144.21,144.13,2.1139]
[1740820909070,6.2454,144.15,144.13,2.1139]
[1740820909278,6.2454,144.15,144.09,40.58594226]
[1740820909976,6.2457,144.14,144.11,6.2469]
[1740820910177,0.04528527,144.13,144.11,6.29401768]
[1740820910873,0.04528527,144.13,144.12,6.2465]
[1740820911073,0.04528527,144.13,144.11,0.04711768]
[1740820911074,9.98,144.18,144.11,0.04711768]
[1740820911274,9.98,144.21,144.11,0.04711768]
[1740820911475,9.98,144.21,144.14,6.2456]
[1740820911669,9.98,144.21,144.09,40.58594226]
[1740820912075,9.98,144.21,144.12,6.2463]
[1740820912278,0.04884679,144.16,144.14,0.04744149]
[1740820912581,6.2451,144.16,144.14,0.04744149]
[1740820912777,6.29307238,144.16,144.14,0.04744149]
[1740820912979,0.04797238,144.16,144.14,0.04744149]
[1740820913186,6.2452,144.15,144.14,0.04744149]
[1740820915171,10.02797238,144.16,144.08,38.44404226]
[1740820915577,9.98,144.16,144.08,44.69214226]
[1740820915779,6.2468,144.12,144.08,6.2481]
[1740820916483,0.05288935,144.11,144.09,0.05222134]
[1740820916782,9.98,144.16,144.09,6.29992134]
[1740820916984,0.05318573,144.11,144.09,0.05222134]
[1740820917285,0.05286839,144.11,144.09,0.05222134]
[1740820919283,9.98,144.16,144.09,0.05222134]
[1740820919486,6.5379,144.22,144.09,0.05222134]
[1740820919674,9.98,144.21,144.08,9.98]
[1740820919880,6.2446,144.17,144.13,6.246]
[1740820920080,9.98,144.21,144.13,6.246]
[1740820920585,6.2447,144.17,144.16,0.04718288]
[1740820920884,6.2459,144.14,144.1,6.2471]
[1740820921080,0.05119933,144.18,144.15,0.05204404]
[1740820921386,0.04913807,144.18,144.15,9.481e-05]
[1740820921585,6.2448,144.16,144.15,9.481e-05]
[1740820921787,16.2248,144.16,144.15,9.481e-05]
[1740820925485,19.6848,144.16,144.15,9.481e-05]
[1740820925685,23.8847,144.16,144.15,9.481e-05]
[1740820927987,20.4247,144.16,144.15,9.481e-05]
[1740820929491,23.8847,144.16,144.15,9.481e-05]
[1740820929882,20.4247,144.16,144.15,9.481e-05]
[1740820930188,23.8847,144.16,144.15,9.481e-05]
[1740820933283,25.13593139,144.16,144.15,9.481e-05]
[1740820933486,23.8847,144.16,144.15,9.481e-05]
[1740820933688,25.13593139,144.16,144.15,9.481e-05]
[1740820933983,23.8847,144.16,144.15,9.481e-05]
[1740820934390,25.13604279,144.16,144.15,9.481e-05]
[1740820935386,25.13609601,144.16,144.15,9.481e-05]
[1740820937489,25.1360692,144.16,144.15,9.481e-05]
[1740820937693,21.6760692,144.16,144.15,9.481e-05]
[1740820937891,20.4247,144.16,144.15,9.481e-05]
[1740820938282,23.8847,144.16,144.15,9.481e-05]
[1740820939392,20.4247,144.16,144.15,9.481e-05]
[1740820939588,23.8847,144.16,144.15,9.481e-05]
[1740820939785,20.4247,144.16,144.15,9.481e-05]
[1740820940294,10.4447,144.16,144.15,9.481e-05]
[1740820940594,20.4247,144.16,144.15,9.481e-05]
[1740820940993,23.8847,144.16,144.15,9.481e-05]
[1740820941189,25.13600292,144.16,144.15,9.481e-05]
[1740820942094,21.67600292,144.16,144.15,9.481e-05]
[1740820942497,25.13600292,144.16,144.15,9.481e-05]
[1740820944398,23.8847,144.16,144.15,9.481e-05]
[1740820944588,25.13605582,144.16,144.15,9.481e-05]
[1740820945393,21.67605582,144.16,144.15,9.481e-05]
[1740820946911,16.2248,144.16,144.15,9.481e-05]
[1740820953111,17.47612934,144.16,144.15,9.481e-05]
[1740820953519,20.93612934,144.16,144.15,9.481e-05]
[1740820953809,6.2487,144.07,144.06,4.4531]
[1740820956306,10.03119842,144.08,144.05,0.04954973]
[1740820956502,6.2491,144.06,144.05,0.04954973]
[1740820957314,6.2491,144.06,144.05,4.973e-05]
[1740820958907,7.50129648,144.06,144.05,4.973e-05]
[1740820959103,7.50130464,144.06,144.05,4.973e-05]
[1740820959408,10.98130464,144.06,144.05,4.973e-05]
[1740820959915,200.98130464,144.06,144.05,4.973e-05]
[1740820960713,199.7291,144.06,144.05,4.973e-05]
[1740820960908,200.98155536,144.06,144.05,4.973e-05]
[1740820962416,199.7291,144.06,144.05,4.973e-05]
[1740820962613,200.98161439,144.06,144.05,4.973e-05]
[1740820963820,10.98161439,144.06,144.05,4.973e-05]
[1740820964014,7.50161439,144.06,144.05,4.973e-05]
[1740820964321,17.48161439,144.06,144.05,4.973e-05]
[1740820964518,17.48136119,144.06,144.05,4.973e-05]
[1740820965316,16.2291,144.06,144.05,4.973e-05]
[1740820967914,17.4812484,144.06,144.05,4.973e-05]
[1740820969322,11.2321484,144.06,143.83,76.7774243]
[1740820969524,193.5185484,144.05,143.85,9.98]
[1740820969820,1.2521484,144.04,143.85,9.98]
[1740820970025,6.2546,143.94,143.88,6.2568]
[1740820970625,0.04424337,143.92,143.9,0.05123908]
[1740820971419,0.04424337,143.92,143.9,3.53123908]
[1740820972020,0.04424337,143.92,143.9,0.05123908]
[1740820973621,6.29954337,143.92,143.9,0.05123908]
[1740820974327,6.2556,143.91,143.9,0.05123908]
[1740820976223,6.2556,143.91,143.9,3.908e-05]
[1740820979633,6.29964337,143.92,143.9,3.908e-05]
[1740820979834,0.04424337,143.92,143.9,3.908e-05]
[1740820980134,0.04424337,143.92,143.9,2.11433908]
[1740820980429,9.98,143.94,143.9,2.11433908]
[1740820980637,9.98,143.94,143.91,2.0651]
[1740820981035,6.2552,143.92,143.91,2.0651]
[1740820982234,0.04626187,143.93,143.91,2.0651]
[1740820982535,5.21756187,143.93,143.91,2.0651]
[1740820982739,9.98,143.94,143.91,2.0651]
[1740820983734,10.02947385,143.94,143.91,2.0651]
[1740820983934,6.2552,143.92,143.91,2.0651]
[1740820986746,6.2556,143.91,143.9,3.908e-05]
[1740821000442,9.7356,143.91,143.9,3.908e-05]
[1740821000643,10.98911542,143.91,143.9,3.908e-05]
[1740821001545,6.2556,143.91,143.9,3.908e-05]
[1740821001754,6.2608,143.8,143.73,76.7774243]
[1740821001944,16.2408,143.8,143.75,14.04290815]
[1740821002650,16.2408,143.8,143.75,20.30540815]
[1740821002946,0.04389995,143.79,143.76,0.04967268]
[1740821004648,6.30479995,143.79,143.76,0.04967268]
[1740821005050,0.04389995,143.79,143.78,6.2613]
[1740821005245,222.48,143.85,143.76,3.52967268]
[1740821005447,6.2591,143.83,143.79,6.2605]
[1740821006650,0.04480053,143.82,143.8,0.04544382]
[1740821007152,6.26,143.81,143.8,0.04544382]
[1740821007353,0.04480053,143.82,143.74,2.1299]
[1740821007548,222.48,143.85,143.74,2.1299]
[1740821008346,0.05291894,143.81,143.74,2.1299]
[1740821008549,0.05291894,143.81,143.78,0.05223857]
[1740821008750,10.05291894,143.81,143.78,0.05223857]
[1740821009552,6.2609,143.79,143.78,0.05223857]
[1740821018457,10.05291894,143.81,143.71,6.2642]
[1740821018759,6.263,143.75,143.71,6.2642]
[1740821018957,10.0,143.81,143.71,6.2642]
[1740821019158,10.0,143.81,143.69,4.4102]
[1740821019355,10.0,143.81,143.7,6.2646]
[1740821019752,6.2626,143.75,143.74,0.04938177]
[1740821020059,10.0,143.76,143.74,0.04938177]
[1740821020451,0.04809451,143.77,143.74,0.04938177]
[1740821021157,0.04809451,143.77,143.76,6.2621]
[1740821021557,16.2599,143.82,143.74,0.04938177]
[1740821021757,6.26,143.81,143.74,0.04938177]
[1740821022361,6.26,143.81,143.77,6.2617]
[1740821022757,0.04778086,143.8,143.78,0.04670181]
[1740821022959,6.30818086,143.8,143.78,0.04670181]
[1740821023562,0.04778086,143.8,143.78,0.04670181]
[1740821028367,6.30818086,143.8,143.78,0.04670181]
[1740821031073,6.2608,143.79,143.78,0.04670181]
[1740821034768,6.2626,143.75,143.69,21.73380815]
[1740821035171,6.2626,143.75,143.69,23.96050815]
[1740821035371,6.2624,143.76,143.69,23.96050815]
[1740821035777,10.0,143.82,143.72,6.2636]
[1740821036275,0.04444217,143.78,143.76,0.05292606]
[1740821036872,10.0,143.77,143.76,0.05292606]
[1740821038470,16.2617,143.77,143.76,0.05292606]
[1740821040978,16.2617,143.77,143.76,2.606e-05]
[1740821041182,6.2635,143.73,143.69,4.308]
[1740821041673,10.0,143.77,143.67,10.0]
[1740821041881,6.264,143.72,143.67,10.0]
[1740821042281,0.04879067,143.71,143.68,0.05251777]
[1740821043286,0.04879067,143.71,143.69,6.2649]
[1740821043487,10.0,143.77,143.68,3.53251777]
[1740821043687,10.0,143.77,143.67,10.0]
[1740821043886,6.2622,143.76,143.73,6.2634]
[1740821044086,6.4333,143.84,143.67,10.0]
[1740821044389,6.2611,143.79,143.67,10.0]
[1740821044784,0.05197122,143.74,143.72,0.04489386]
[1740821044985,10.0,143.82,143.74,6.2627]
[1740821045385,10.0,143.82,143.69,10.0]
[1740821045989,10.0,143.82,143.66,12.0594]
[1740821046182,0.05132845,143.77,143.74,0.04819578]
[1740821046387,10.05132845,143.77,143.74,0.04819578]
[1740821047497,6.2626,143.75,143.74,0.04819578]
[1740821048188,0.05132845,143.77,143.74,0.04819578]
[1740821048390,6.31312845,143.77,143.74,0.04819578]
[1740821050688,6.2623,143.76,143.74,0.04819578]
[1740821051298,6.2626,143.75,143.74,0.04819578]
[1740821059900,0.05132845,143.77,143.66,50.50344226]
[1740821059901,6.2641,143.72,143.68,6.2654]
[1740821061000,0.04576591,143.71,143.69,0.04687474]
[1740821062104,6.2648,143.7,143.69,0.04687474]
[1740821063302,0.04576591,143.71,143.62,38.44404226]
[1740821063501,10.0,143.7,143.62,38.44404226]
[1740821064401,10.0,143.7,143.65,0.04668318]
[1740821064402,0.04939608,143.67,143.65,0.04668318]
[1740821065298,0.04939608,143.67,143.66,6.2665]
[1740821066602,0.04939608,143.67,143.65,6.31348318]
[1740821066806,0.04939608,143.67,143.65,0.04668318]
[1740821067904,0.04939608,143.67,143.65,6.31328318]
[1740821068505,0.04939608,143.67,143.65,0.04668318]
[1740821069006,0.04939608,143.67,143.66,6.2665]
[1740821069802,0.04939608,143.67,143.65,0.04668318]
[1740821070305,6.2665,143.66,143.65,0.04668318]
[1740821072208,0.04939608,143.67,143.65,0.04668318]
[1740821072410,0.04939608,143.67,143.65,6.31358318]
[1740821073909,0.04939608,143.67,143.66,6.2665]
[1740821081204,2.1859,143.74,143.7,6.2647]
[1740821081409,10.0,143.76,143.7,6.2647]
[1740821081609,10.0,143.76,143.64,4.3253]
[1740821082009,6.2632,143.74,143.64,4.3253]
[1740821082511,0.04395568,143.7,143.68,0.04997582]
[1740821082910,0.04395568,143.7,143.69,6.2652]
[1740821090817,0.04395568,143.7,143.68,0.04997582]
[1740821093518,0.04395568,143.7,143.69,6.2652]
[1740821093818,0.04395568,143.7,143.68,0.04997582]
[1740821094212,0.04395568,143.7,143.68,6.31537582]
[1740821095525,0.04395568,143.7,143.69,6.2652]
[1740821096623,0.04395568,143.7,143.68,6.31547582]
[1740821098323,0.04395568,143.7,143.69,6.2652]
[1740821100724,5.568e-05,143.7,143.69,6.2652]
[1740821102633,5.568e-05,143.7,143.68,10.04997582]
[1740821103226,6.2652,143.69,143.68,0.04997582]
[1740821104035,6.2669,143.65,143.64,38.44404226]
[1740821104718,6.2669,143.65,143.61,6.2685]
[1740821104924,6.2667,143.66,143.6,38.44404226]
[1740821105123,0.04704482,143.64,143.62,6.32138392]
[1740821105823,0.04704482,143.64,143.62,0.05328392]
[1740821107129,0.04704482,143.64,143.62,6.32148392]
[1740821107428,0.04704482,143.64,143.62,0.05328392]
[1740821108728,4.482e-05,143.64,143.62,0.05328392]
[1740821109530,4.482e-05,143.64,143.63,6.2678]
[1740821112232,4.482e-05,143.64,143.62,0.05328392]
[1740821112432,4.482e-05,143.64,143.62,6.32128392]
[1740821112631,4.482e-05,143.64,143.62,0.05328392]
[1740821113027,4.482e-05,143.64,143.63,6.2678]
[1740821115534,4.482e-05,143.64,143.62,6.32148392]
[1740821116339,4.482e-05,143.64,143.62,0.05328392]
[1740821116539,6.26744482,143.64,143.62,0.05328392]
[1740821117840,6.2678,143.63,143.62,0.05328392]
[1740821119644,4.482e-05,143.64,143.62,0.05328392]
[1740821119943,6.26774482,143.64,143.62,0.05328392]
[1740821122247,4.482e-05,143.64,143.62,0.05328392]
[1740821122451,6.2678,143.63,143.62,0.05328392]
[1740821122842,4.482e-05,143.64,143.53,54.90396624]
[1740821123139,2.2593,143.66,143.53,48.44404226]
[1740821123751,2.2593,143.66,143.57,6.2701]
[1740821124050,0.0458211,143.61,143.58,0.04391]
[1740821124852,6.3146211,143.61,143.58,0.04391]
[1740821125145,0.0458211,143.61,143.58,0.04391]
[1740821126440,4.2777,143.67,143.58,10.04391]
[1740821126647,251.65318327,143.74,143.58,10.04391]
[1740821126648,2.1079,143.73,143.59,2.1342]
[1740821126860,4.2686,143.73,143.59,2.3342]
[1740821127657,0.04844597,143.67,143.66,6.2665]
[1740821127851,4.2686,143.73,143.66,10.0]
[1740821128154,0.0508396,143.68,143.66,10.0]
[1740821128351,4.2686,143.73,143.68,6.2655]
[1740821128756,0.05236513,143.72,143.69,0.04800465]
[1740821129455,0.05236513,143.72,143.69,6.31310465]
[1740821132059,6.2644,143.71,143.69,0.04800465]
[1740821132265,0.05236513,143.72,143.63,120.88377679]
[1740821132561,6.2655,143.69,143.63,110.88377679]